fUSD/lending_fUSD_20240319
["ID","MTS","AMOUNT","RATE_DAILY","PERIOD"]
[319515396,1710815490403,-500.0,0.00055616,120]
[319515397,1710815490413,-554.6,0.00055616,120]
[319515398,1710815490422,-686.3,0.00055616,120]
[319515399,1710815490432,-500.0,0.00055616,120]
[319515400,1710815490443,-500.0,0.00055616,120]
[319515401,1710815490453,-500.0,0.00055616,7]
[319515402,1710815490462,-500.0,0.00055616,120]
[319515403,1710815490472,-500.0,0.00055616,120]
[319515404,1710815490481,-500.0,0.00055616,120]
[319515405,1710815490490,-439.28309142,0.00055616,120]
[319515406,1710815490499,-500.0,0.00055616,120]
[319515407,1710815490508,-500.0,0.00055616,120]
[319515408,1710815490517,-574.08,0.00055616,120]
[319515409,1710815490526,-500.0,0.00055616,120]
[319515410,1710815490536,-500.0,0.00055616,120]
[319515411,1710815490545,-150.0,0.00055616,120]
[319515412,1710815490555,-500.0,0.00055616,120]
[319515413,1710815490564,-500.0,0.00055616,120]
[319515414,1710815490574,-558.17,0.00055616,120]
[319515415,1710815490583,-500.0,0.00055616,120]
[319515416,1710815490593,-1137.59,0.00055616,120]
[319515417,1710815490603,-500.0,0.00055616,120]
[319515418,1710815490612,-500.0,0.00055616,120]
[319515419,1710815490621,-500.0,0.00055616,120]
[319515420,1710815490630,-500.0,0.00055616,120]
[319515421,1710815490640,-500.0,0.00055616,120]
[319515422,1710815490650,-501.71752954,0.00055616,120]
[319515423,1710815490660,-507.81,0.00055616,120]
[319515424,1710815490669,-500.0,0.00055616,120]
[319515425,1710815490678,-500.0,0.00055616,120]
[319515426,1710815490689,-1066.39,0.00055616,120]
[319515427,1710815490699,-726.06,0.00055616,120]
[319515428,1710815490708,-500.0,0.00055616,120]
[319515429,1710815490717,-955.3,0.00055616,120]
[319515430,1710815490728,-506.37,0.00055616,120]
[319515431,1710815490737,-500.0,0.00055616,120]
[319515432,1710815490747,-500.0,0.00055616,120]
[319515433,1710815490761,-500.0,0.00055616,120]
[319515434,1710815490776,-729.9,0.00055616,120]
[319515435,1710815490790,-500.0,0.00055616,120]
[319515436,1710815490801,-500.0,0.00055616,120]
[319515437,1710815490815,-500.0,0.00055616,120]
[319515438,1710815490829,-500.0,0.00055616,120]
[319515439,1710815490844,-500.0,0.00055616,120]
[319515440,1710815490858,-500.0,0.00055616,120]
[319515441,1710815490870,-1170.74,0.00055616,120]
[319515442,1710815490885,-500.0,0.00055616,120]
[319515443,1710815490898,-500.0,0.00055616,120]
[319515444,1710815490911,-500.0,0.00055616,120]
[319515445,1710815490926,-788.67,0.00055616,120]
[319515446,1710815490944,-643.23,0.00055616,120]
[319515447,1710815490955,-663.98,0.00055616,120]
[319515448,1710815490971,-1563.39,0.00055616,120]
[319515449,1710815490987,-624.85698987,0.00055616,120]
[319515450,1710815490999,-500.0,0.00055616,120]
[319515451,1710815491011,-500.0,0.00055616,120]
[319515452,1710815491025,-1183.44,0.00055616,120]
[319515453,1710815491039,-500.0,0.00055616,120]
[319515454,1710815491055,-948.97,0.00055616,120]
[319515455,1710815491071,-500.0,0.00055616,120]
[319515456,1710815491084,-500.0,0.00055616,120]
[319515457,1710815491096,-2249.71,0.00055616,120]
[319515458,1710815491107,-1113.91,0.00055616,120]
[319515459,1710815491121,-500.0,0.00055616,120]
[319515460,1710815491133,-500.0,0.00055616,120]
[319515461,1710815491147,-531.34,0.00055616,120]
[319515462,1710815491159,-679.57,0.00055616,120]
[319515463,1710815491172,-500.0,0.00055616,120]
[319515464,1710815491184,-500.0,0.00055616,120]
[319515465,1710815491199,-533.41,0.00055616,120]
[319515466,1710815491213,-500.0,0.00055616,120]
[319515467,1710815491226,-500.0,0.00055616,120]
[319515468,1710815491239,-500.0,0.00055616,120]
[319515469,1710815491253,-838.15,0.00055616,120]
[319515470,1710815491268,-500.0,0.00055616,120]
[319515471,1710815491282,-625.29,0.00055616,120]
[319515472,1710815491296,-500.0,0.00055616,120]
[319515473,1710815491309,-500.0,0.00055616,120]
[319515474,1710815491322,-500.0,0.00055616,120]
[319515475,1710815491334,-703.41,0.00055616,120]
[319515476,1710815491346,-1115.71,0.00055616,120]
[319515477,1710815491357,-817.98,0.00055616,120]
[319515478,1710815491369,-847.82,0.00055616,120]
[319515479,1710815491381,-500.0,0.00055616,120]
[319515480,1710815491392,-500.0,0.00055616,120]
[319515481,1710815491405,-1128.56,0.00055616,120]
[319515482,1710815491416,-500.0,0.00055616,120]
[319515483,1710815491429,-1214.41,0.00055616,120]
[319515484,1710815491445,-1007.84,0.00055616,120]
[319515485,1710815491457,-500.0,0.00055616,120]
[319515486,1710815491468,-500.0,0.00055616,120]
[319515487,1710815491482,-500.0,0.00055616,120]
[319515488,1710815491495,-1752.57,0.00055616,120]
[319515489,1710815491508,-500.0,0.00055616,120]
[319515490,1710815491522,-500.0,0.00055616,120]
[319515491,1710815491536,-500.0,0.00055616,120]
[319515492,1710815491550,-500.0,0.00055616,120]
[319515493,1710815491565,-500.0,0.00055616,120]
[319515494,1710815491579,-500.0,0.00055616,120]
[319515495,1710815491592,-500.0,0.00055616,120]
[319515496,1710815491604,-500.0,0.00055616,120]
[319515497,1710815491617,-1734.48,0.00055616,120]
[319515498,1710815491630,-500.0,0.00055616,120]
[319515499,1710815491643,-500.0,0.00055616,120]
[319515500,1710815491656,-500.0,0.00055616,120]
[319515501,1710815491669,-500.0,0.00055616,120]
[319515502,1710815491682,-567.29,0.00055616,120]
[319515503,1710815491702,-500.0,0.00055616,120]
[319515504,1710815491716,-970.9,0.00055616,120]
[319515505,1710815491730,-500.0,0.00055616,120]
[319515506,1710815491743,-500.0,0.00055616,120]
[319515507,1710815491756,-500.0,0.00055616,120]
[319515508,1710815491769,-500.0,0.00055616,120]
[319515509,1710815491782,-778.75,0.00055616,120]
[319515510,1710815491795,-500.0,0.00055616,120]
[319515511,1710815491807,-500.0,0.00055616,120]
[319515512,1710815491820,-500.0,0.00055616,120]
[319515513,1710815491833,-616.98,0.00055616,120]
[319515514,1710815491846,-551.97274823,0.00055616,120]
[319515515,1710815491858,-663.45,0.00055616,120]
[319515516,1710815491870,-712.94,0.00055616,120]
[319515517,1710815491882,-674.44,0.00055616,120]
[319515518,1710815491894,-841.0,0.00055616,120]
[319515519,1710815491908,-500.0,0.00055616,120]
[319515520,1710815491921,-500.0,0.00055616,120]
[319515521,1710815491934,-500.0,0.00055616,120]
[319515522,1710815491953,-885.77,0.00055616,120]
[319515523,1710815491969,-501.01841545,0.00055616,120]
[319515524,1710815491982,-500.0,0.00055616,120]
[319515525,1710815491995,-500.0,0.00055616,120]
[319515526,1710815492009,-674.33,0.00055616,120]
[319515527,1710815492022,-500.0,0.00055616,120]
[319515528,1710815492034,-500.0,0.00055616,120]
[319515529,1710815492047,-500.0,0.00055616,120]
[319515530,1710815492060,-500.0,0.00055616,120]
[319515531,1710815492073,-500.0,0.00055616,120]
[319515532,1710815492087,-1145.84,0.00055616,120]
[319515533,1710815492100,-537.62,0.00055616,120]
[319515534,1710815492114,-500.0,0.00055616,120]
[319515535,1710815492126,-500.0,0.00055616,120]
[319515536,1710815492139,-913.79,0.00055616,120]
[319515537,1710815492152,-529.25,0.00055616,120]
[319515538,1710815492164,-808.32,0.00055616,120]
[319515539,1710815492177,-500.0,0.00055616,120]
[319515540,1710815492193,-500.0,0.00055616,120]
[319515541,1710815492205,-500.0,0.00055616,120]
[319515542,1710815492220,-500.0,0.00055616,120]
[319515543,1710815492235,-1208.18,0.00055616,120]
[319515544,1710815492249,-500.0,0.00055616,120]
[319515545,1710815492262,-500.0,0.00055616,2]
[319515546,1710815492275,-500.0,0.00055616,120]
[319515547,1710815492288,-500.0,0.00055616,120]
[319515548,1710815492303,-575.55,0.00055616,120]
[319515549,1710815492316,-997.06,0.00055616,120]
[319515550,1710815492329,-500.0,0.00055616,120]
[319515551,1710815492341,-924.28,0.00055616,120]
[319515552,1710815492354,-500.0,0.00055616,120]
[319515553,1710815492367,-500.0,0.00055616,120]
[319515554,1710815492379,-1392.56,0.00055616,120]
[319515555,1710815492390,-500.0,0.00055616,120]
[319515556,1710815492402,-500.0,0.00055616,120]
[319515557,1710815492414,-500.0,0.00055616,120]
[319515558,1710815492425,-500.0,0.00055616,120]
[319515559,1710815492441,-500.0,0.00055616,120]
[319515560,1710815492452,-500.0,0.00055616,120]
[319515561,1710815492464,-500.0,0.00055616,120]
[319515562,1710815492475,-856.25,0.00055616,120]
[319515563,1710815492486,-991.32,0.00055616,120]
[319515564,1710815492497,-500.0,0.00055616,120]
[319515565,1710815492508,-530.13,0.00055616,120]
[319515566,1710815492519,-1127.97,0.00055616,120]
[319515567,1710815492530,-615.03,0.00055616,120]
[319515568,1710815492542,-500.0,0.00055616,120]
[319515569,1710815492552,-1031.95,0.00055616,120]
[319515570,1710815492563,-584.35,0.00055616,120]
[319515571,1710815492575,-1986.08,0.00055616,120]
[319515572,1710815492586,-500.0,0.00055616,120]
[319515573,1710815492597,-302.42646896,0.00055616,120]
[319515574,1710815492608,-500.0,0.00055616,120]
[319515575,1710815492619,-500.69730697,0.00055616,120]
[319515576,1710815492631,-2405.31,0.00055616,120]
[319515577,1710815492641,-500.0,0.00055616,120]
[319515578,1710815492652,-736.51,0.00055616,120]
[319515579,1710815492663,-521.74,0.00055616,120]
[319515580,1710815492674,-629.29,0.00055616,120]
[319515581,1710815492686,-500.0,0.00055616,120]
[319515582,1710815492700,-500.88,0.00055616,120]
[319515583,1710815492711,-500.0,0.00055616,120]
[319515584,1710815492722,-884.25,0.00055616,120]
[319515585,1710815492733,-500.66,0.00055616,120]
[319515586,1710815492745,-500.0,0.00055616,120]
[319515587,1710815492756,-500.0,0.00055616,120]
[319515588,1710815492768,-1068.86,0.00055616,120]
[319515589,1710815492780,-907.89,0.00055616,120]
[319515590,1710815492791,-1212.04,0.00055616,120]
[319515591,1710815492803,-500.0,0.00055616,120]
[319515592,1710815492813,-500.0,0.00055616,120]
[319515593,1710815492824,-500.0,0.00055616,120]
[319515594,1710815492840,-498.36932663,0.00055616,120]
[319515595,1710815492851,-500.0,0.00055616,120]
[319515596,1710815492862,-500.0,0.00055616,120]
[319515597,1710815492873,-506.76,0.00055616,120]
[319515598,1710815492884,-500.0,0.00055616,120]
[319515599,1710815492894,-500.0,0.00055616,120]
[319515600,1710815492905,-500.0,0.00055616,120]
[319515601,1710815492916,-783.78,0.00055616,120]
[319515602,1710815492926,-658.54,0.00055616,120]
[319515603,1710815492939,-500.0,0.00055616,120]
[319515604,1710815492950,-686.88,0.00055616,120]
[319515605,1710815492960,-1217.32,0.00055616,120]
[319515606,1710815492971,-500.0,0.00055616,120]
[319515607,1710815492982,-500.0,0.00055616,120]
[319515608,1710815492994,-2332.14,0.00055616,120]
[319515609,1710815493005,-500.0,0.00055616,120]
[319515610,1710815493016,-500.0,0.00055616,120]
[319515611,1710815493028,-500.0,0.00055616,120]
[319515612,1710815493039,-500.0,0.00055616,120]
[319515613,1710815493050,-500.0,0.00055616,120]
[319515614,1710815493061,-1005.17,0.00055616,120]
[319515615,1710815493072,-500.0,0.00055616,120]
[319515616,1710815493084,-532.25,0.00055616,120]
[319515617,1710815493095,-500.0,0.00055616,120]
[319515618,1710815493107,-500.0,0.00055616,120]
[319515619,1710815493119,-500.0,0.00055616,120]
[319515620,1710815493130,-1179.73,0.00055616,120]
[319515621,1710815493142,-500.0,0.00055616,120]
[319515622,1710815493154,-2096.5,0.00055616,120]
[319515623,1710815493165,-312.77627419,0.00055616,120]
[319515624,1710815493176,-1608.51,0.00055616,120]
[319515625,1710815493190,-500.0,0.00055616,120]
[319515626,1710815493202,-500.0,0.00055616,120]
[319515627,1710815493214,-500.0,0.00055616,120]
[319515628,1710815493225,-500.0,0.00055616,120]
[319515629,1710815493238,-500.0,0.00055616,120]
[319515630,1710815493248,-500.0,0.00055616,120]
[319515631,1710815493261,-500.0,0.00055616,120]
[319515632,1710815493273,-665.36,0.00055616,120]
[319515633,1710815493284,-500.0,0.00055616,120]
[319515634,1710815493296,-500.0,0.00055616,120]
[319515635,1710815493307,-500.0,0.00055616,120]
[319515636,1710815493321,-500.0,0.00055616,120]
[319515637,1710815493333,-500.0,0.00055616,120]
[319515638,1710815493344,-657.4,0.00055616,120]
[319515639,1710815493355,-706.23,0.00055616,120]
[319515640,1710815493366,-500.0,0.00055616,120]
[319515641,1710815493377,-500.0,0.00055616,120]
[319515642,1710815493388,-500.0,0.00055616,30]
[319515643,1710815493399,-500.0,0.00055616,120]
[319515644,1710815493410,-500.0,0.00055616,120]
[319515645,1710815493421,-500.0,0.00055616,120]
[319515646,1710815493432,-500.0,0.00055616,120]
[319515647,1710815493445,-500.0,0.00055616,120]
[319515648,1710815493456,-500.0,0.00055616,120]
[319515649,1710815493467,-979.2,0.00055616,120]
[319515650,1710815493478,-509.17335658,0.00055616,120]
[319515651,1710815493489,-500.0,0.00055616,120]
[319515652,1710815493500,-779.32,0.00055616,120]
[319515653,1710815493511,-500.0,0.00055616,120]
[319515654,1710815493522,-500.0,0.00055616,120]
[319515655,1710815493533,-606.58,0.00055616,120]
[319515656,1710815493544,-1845.88,0.00055616,120]
[319515657,1710815493555,-569.55,0.00055616,120]
[319515658,1710815493971,-500.0,0.00055616,120]
[319515659,1710815493987,-500.0,0.00055616,120]
[319515660,1710815493997,-1005.07,0.00055616,120]
[319515661,1710815494006,-500.0,0.00055616,120]
[319515662,1710815494015,-500.0,0.00055616,120]
[319515663,1710815494025,-500.0,0.00055616,120]
[319515664,1710815494033,-500.0,0.00055616,120]
[319515665,1710815494043,-500.0,0.00055616,120]
[319515666,1710815494052,-500.0,0.00055616,120]
[319515667,1710815494061,-500.0,0.00055616,120]
[319515668,1710815494071,-319.81675586,0.00055616,120]
[319515669,1710815494080,-500.0,0.00055616,120]
[319515670,1710815494089,-500.0,0.00055616,120]
[319515671,1710815494098,-1725.13,0.00055616,120]
[319515672,1710815494107,-500.0,0.00055616,120]
[319515673,1710815494117,-1051.81,0.00055616,120]
[319515674,1710815494126,-500.0,0.00055616,120]
[319515675,1710815494135,-500.25,0.00055616,120]
[319515676,1710815494145,-1641.6,0.00055616,120]
[319515677,1710815494155,-500.0,0.00055616,120]
[319515678,1710815494165,-500.0,0.00055616,120]
[319515679,1710815494174,-1508.78,0.00055616,120]
[319515680,1710815494184,-500.0,0.00055616,120]
[319515681,1710815494196,-500.0,0.00055616,120]
[319515682,1710815494208,-500.0,0.00055616,120]
[319515683,1710815494218,-500.0,0.00055616,120]
[319515684,1710815494227,-500.0,0.00055616,120]
[319515685,1710815494237,-500.0,0.00055616,120]
[319515686,1710815494249,-500.0,0.00055616,120]
[319515687,1710815494258,-1284.72,0.00055616,120]
[319515688,1710815494268,-500.0,0.00055616,120]
[319515689,1710815494277,-500.0,0.00055616,120]
[319515690,1710815494287,-1103.59,0.00055616,120]
[319515691,1710815494298,-500.0,0.00055616,120]
[319515692,1710815494309,-712.96,0.00055616,120]
[319515693,1710815494319,-851.33,0.00055616,120]
[319515694,1710815494329,-500.0,0.00055616,120]
[319515695,1710815494339,-500.0,0.00055616,120]
[319515696,1710815494348,-1706.34,0.00055616,120]
[319515697,1710815494358,-500.0,0.00055616,120]
[319515698,1710815494367,-500.0,0.00055616,120]
[319515699,1710815494377,-500.0,0.00055616,120]
[319515700,1710815494386,-500.0,0.00055616,120]
[319515701,1710815494396,-500.0,0.00055616,120]
[319515702,1710815494406,-193.83294779,0.00055616,120]
[319515703,1710815494415,-500.0,0.00055616,120]
[319515704,1710815494425,-500.0,0.00055616,120]
[319515705,1710815494435,-500.0,0.00055616,120]
[319515706,1710815494449,-500.0,0.00055616,120]
[319515707,1710815494458,-1462.73,0.00055616,120]
[319515708,1710815494468,-1498.11,0.00055616,120]
[319515709,1710815494478,-504.00594968,0.00055616,120]
[319515710,1710815494487,-826.15,0.00055616,120]
[319515711,1710815494496,-500.0,0.00055616,120]
[319515712,1710815494506,-719.69,0.00055616,120]
[319515713,1710815494515,-500.0,0.00055616,120]
[319515714,1710815494525,-500.0,0.00055616,120]
[319515715,1710815494534,-500.0,0.00055616,120]
[319515716,1710815494544,-500.0,0.00055616,120]
[319515717,1710815494555,-538.85343417,0.00055616,120]
[319515718,1710815494566,-500.0,0.00055616,120]
[319515719,1710815494576,-500.0,0.00055616,120]
[319515720,1710815494587,-738.11,0.00055616,120]
[319515721,1710815494599,-483.93446868,0.00055616,120]
[319515722,1710815494610,-500.0,0.00055616,120]
[319515723,1710815494621,-500.0,0.00055616,120]
[319515724,1710815494631,-500.74987844,0.00055616,120]
[319515725,1710815494641,-519.04,0.00055616,120]
[319515726,1710815494651,-1604.72,0.00055616,120]
[319515727,1710815494661,-1556.57,0.00055616,120]
[319515728,1710815494672,-1091.02,0.00055616,120]
[319515729,1710815494681,-1051.94,0.00055616,120]
[319515730,1710815494692,-500.68366562,0.00055616,120]
[319515731,1710815494703,-506.09509499,0.00055616,120]
[319515732,1710815494713,-500.0,0.00055616,120]
[319515733,1710815494723,-509.41,0.00055616,120]
[319515734,1710815494733,-500.0,0.00055616,120]
[319515735,1710815494743,-500.0,0.00055616,120]
[319515736,1710815494753,-500.0,0.00055616,120]
[319515737,1710815494763,-572.57,0.00055616,120]
[319515738,1710815494773,-3137.13,0.00055616,120]
[319515739,1710815494783,-639.38,0.00055616,120]
[319515740,1710815494792,-500.0,0.00055616,120]
[319515741,1710815494802,-967.93,0.00055616,120]
[319515742,1710815494812,-500.0,0.00055616,120]
[319515743,1710815494822,-500.0,0.00055616,120]
[319515744,1710815494831,-500.0,0.00055616,120]
[319515745,1710815494841,-500.0,0.00055616,120]
[319515746,1710815494850,-511.08,0.00055616,120]
[319515747,1710815494860,-500.0,0.00055616,120]
[319515748,1710815494869,-500.0,0.00055616,120]
[319515749,1710815494878,-500.0,0.00055616,120]
[319515750,1710815494888,-500.0,0.00055616,120]
[319515751,1710815494898,-889.69,0.00055616,120]
[319515752,1710815494907,-500.0,0.00055616,120]
[319515753,1710815494917,-500.0,0.00055616,120]
[319515754,1710815494927,-500.0,0.00055616,120]
[319515755,1710815494936,-734.3,0.00055616,120]
[319515756,1710815494948,-545.99,0.00055616,120]
[319515757,1710815494957,-1467.2,0.00055616,120]
[319515758,1710815494967,-500.0,0.00055616,120]
[319515759,1710815494976,-558.68,0.00055616,120]
[319515760,1710815494985,-500.0,0.00055616,120]
[319515761,1710815494995,-500.0,0.00055616,120]
[319515762,1710815495005,-500.0,0.00055616,120]
[319515763,1710815495015,-500.0,0.00055616,120]
[319515764,1710815495024,-2986.97,0.00055616,120]
[319515765,1710815495035,-500.0,0.00055616,120]
[319515766,1710815495045,-500.0,0.00055616,120]
[319515767,1710815495055,-500.0,0.00055616,120]
[319515768,1710815495065,-500.0,0.00055616,120]
[319515769,1710815495075,-768.85,0.00055616,120]
[319515770,1710815495085,-1718.89,0.00055616,120]
[319515771,1710815495095,-500.0,0.00055616,120]
[319515772,1710815495105,-500.0,0.00055616,120]
[319515773,1710815495116,-500.0,0.00055616,120]
[319515774,1710815495126,-500.0,0.00055616,120]
[319515775,1710815495136,-1053.97,0.00055616,120]
[319515776,1710815495147,-500.0,0.00055616,120]
[319515777,1710815495158,-500.0,0.00055616,120]
[319515778,1710815495168,-500.0,0.00055616,120]
[319515779,1710815495178,-500.0,0.00055616,120]
[319515780,1710815495189,-500.0,0.00055616,120]
[319515781,1710815495201,-500.0,0.00055616,120]
[319515782,1710815495211,-500.0,0.00055616,120]
[319515783,1710815495223,-500.0,0.00055616,120]
[319515784,1710815495235,-500.0,0.00055616,120]
[319515785,1710815495246,-2000.0,0.00055616,120]
[319515786,1710815495256,-500.0,0.00055616,120]
[319515787,1710815495266,-795.55,0.00055616,120]
[319515788,1710815495277,-686.9,0.00055616,120]
[319515789,1710815495287,-500.0,0.00055616,120]
[319515790,1710815495298,-509.82,0.00055616,120]
[319515791,1710815495309,-500.0,0.00055616,120]
[319515792,1710815495320,-500.0,0.00055616,120]
[319515793,1710815495330,-831.89,0.00055616,120]
[319515794,1710815495340,-500.0,0.00055616,120]
[319515795,1710815495349,-500.0,0.00055616,120]
[319515796,1710815495359,-5220.64,0.00055616,120]
[319515797,1710815495370,-500.0,0.00055616,120]
[319515798,1710815495379,-500.0,0.00055616,120]
[319515799,1710815495390,-500.0,0.00055616,120]
[319515800,1710815495400,-500.0,0.00055616,120]
[319515801,1710815495410,-500.0,0.00055616,120]
[319515802,1710815495421,-1115.2,0.00055616,120]
[319515803,1710815495432,-3400.1,0.00055616,120]
[319515804,1710815495444,-500.0,0.00055616,120]
[319515805,1710815495454,-500.0,0.00055616,120]
[319515806,1710815495465,-500.0,0.00055616,120]
[319515807,1710815495475,-500.0,0.00055616,120]
[319515808,1710815495486,-505.98240751,0.00055616,120]
[319515809,1710815495497,-500.0,0.00055616,120]
[319515810,1710815495508,-1814.97,0.00055616,120]
[319515811,1710815495519,-1617.46,0.00055616,120]
[319515812,1710815495529,-13598.94,0.00055616,120]
[319515813,1710815495539,-520.93,0.00055616,120]
[319515814,1710815495550,-500.0,0.00055616,120]
[319515815,1710815495560,-500.0,0.00055616,120]
[319515816,1710815495570,-500.0,0.00055616,120]
[319515817,1710815495580,-500.0,0.00055616,120]
[319515818,1710815495590,-980.92,0.00055616,120]
[319515819,1710815495600,-500.0,0.00055616,120]
[319515820,1710815495610,-500.0,0.00055616,7]
[319515821,1710815495620,-500.0,0.00055616,120]
[319515822,1710815495630,-500.0,0.00055616,120]
[319515823,1710815495640,-500.70043874,0.00055616,120]
[319515824,1710815495651,-500.0,0.00055616,120]
[319515825,1710815495661,-549.63032426,0.00055616,120]
[319515826,1710815495672,-500.0,0.00055616,120]
[319515827,1710815495683,-2445.6,0.00055616,120]
[319515828,1710815495696,-1714.56,0.00055616,120]
[319515829,1710815495708,-500.0,0.00055616,120]
[319515830,1710815495720,-500.0,0.00055616,120]
[319515831,1710815495731,-549.98,0.00055616,120]
[319515832,1710815495742,-993.9,0.00055616,120]
[319515833,1710815495753,-500.0,0.00055616,120]
[319515834,1710815495764,-500.0,0.00055616,120]
[319515835,1710815495774,-500.0,0.00055616,120]
[319515836,1710815495784,-658.87,0.00055616,120]
[319515837,1710815495794,-500.0,0.00055616,120]
[319515838,1710815495806,-637.11,0.00055616,120]
[319515839,1710815495819,-500.0,0.00055616,120]
[319515840,1710815495830,-500.0,0.00055616,120]
[319515841,1710815495841,-1643.61,0.00055616,120]
[319515842,1710815495852,-500.0,0.00055616,120]
[319515843,1710815495863,-500.0,0.00055616,120]
[319515844,1710815495874,-1809.66,0.00055616,120]
[319515845,1710815495884,-500.0,0.00055616,120]
[319515846,1710815495896,-500.0,0.00055616,120]
[319515847,1710815495906,-500.0,0.00055616,120]
[319515848,1710815495917,-500.0,0.00055616,120]
[319515849,1710815495929,-500.0,0.00055616,120]
[319515850,1710815495939,-571.91,0.00055616,120]
[319515851,1710815495952,-541.8,0.00055616,120]
[319515852,1710815495962,-751.86,0.00055616,120]
[319515853,1710815495973,-500.0,0.00055616,120]
[319515854,1710815495983,-1299.29,0.00055616,120]
[319515855,1710815495994,-500.0,0.00055616,120]
[319515856,1710815496006,-16186.27,0.00055616,120]
[319515857,1710815496018,-924.93,0.00055616,120]
[319515858,1710815496034,-500.0,0.00055616,120]
[319515859,1710815496047,-500.0,0.00055616,120]
[319515860,1710815496059,-1654.05,0.00055616,120]
[319515861,1710815496070,-500.0,0.00055616,120]
[319515862,1710815496082,-500.0,0.00055616,120]
[319515863,1710815496094,-500.0,0.00055616,120]
[319515864,1710815496105,-804.39,0.00055616,120]
[319515865,1710815496117,-500.0,0.00055616,120]
[319515866,1710815496129,-500.0,0.00055616,120]
[319515867,1710815496142,-782.74,0.00055616,120]
[319515868,1710815496154,-2232.31,0.00055616,120]
[319515869,1710815496167,-500.0,0.00055616,120]
[319515870,1710815496179,-604.38,0.00055616,120]
[319515871,1710815496191,-500.0,0.00055616,120]
[319515872,1710815496213,-500.0,0.00055616,120]
[319515873,1710815496226,-2164.67,0.00055616,120]
[319515874,1710815496239,-1663.42,0.00055616,120]
[319515875,1710815496251,-500.0,0.00055616,120]
[319515876,1710815496263,-500.0,0.00055616,120]
[319515877,1710815496275,-1083.83,0.00055616,120]
[319515878,1710815496289,-500.0,0.00055616,120]
[319515879,1710815496301,-500.0,0.00055616,120]
[319515880,1710815496313,-500.0,0.00055616,120]
[319515881,1710815496324,-504.1326094,0.00055616,120]
[319515882,1710815496335,-1157.87,0.00055616,120]
[319515883,1710815496347,-500.0,0.00055616,120]
[319515884,1710815496358,-981.98,0.00055616,120]
[319515885,1710815496370,-503.79859453,0.00055616,120]
[319515886,1710815496382,-2476.44,0.00055616,120]
[319515887,1710815496393,-500.0,0.00055616,120]
[319515888,1710815496404,-500.0,0.00055616,120]
[319515889,1710815496416,-500.0,0.00055616,120]
[319515890,1710815496428,-500.0,0.00055616,120]
[319515891,1710815496439,-500.0,0.00055616,120]
[319515892,1710815496454,-1219.47,0.00055616,120]
[319515893,1710815496465,-500.0,0.00055616,120]
[319515894,1710815496477,-561.41658129,0.00055616,120]
[319515895,1710815496488,-642.22,0.00055616,120]